Workbook

Sheet Business Budget - Goods
B1: BUSINESS BUDGET
B3: SUMMARY | C3: BUDGET | D3: ACTUAL | E3: UNDER/OVER
B4: Total Income | C4: =C18 -> 7270 | D4: =D18 -> 7020 | E4: =C4-D4 -> 250
B5: Total Expenses | C5: =SUM(C34,C39,C48,C54+C62,C70) -> 5023 | D5: =SUM(D34,D39,D48,D54+D62,D70) -> 5450 | E5: =C5-D5 -> -427
C7: BUDGET | D7: ACTUAL | E7: UNDER/OVER
B8: INCOME
B9: OPERATING INCOME
B10: Category 1 | C10: 6000 | D10: 6000 | E10: =D10-C10 -> 0
B11: Category 2 | C11: 200 | D11: 150 | E11: =D11-C11 -> -50
B12: Category 3 | C12: 100 | D12: 100 | E12: 0
B13: Category 4 | C13: 55 | D13: 20 | E13: -35
B14: Category 5 | C14: 500 | D14: 500 | E14: 0
B15: Category 6 | C15: 300 | D15: 200 | E15: -100
B16: Category 7 | C16: 115 | D16: 50 | E16: -65
B18: TOTAL | C18: =SUM(C10:C16) -> 7270 | D18: =SUM(D10:D16) -> 7020
B20: EXPENSES | C20: BUDGET | D20: ACTUAL | E20: UNDER/OVER
B21: OPERATING EXPENSE
B22: Accounting & Legal | C22: 2250 | D22: 2250 | E22: =D22-C22 -> 0
B23: Advertising | C23: 25 | E23: =D23-C23 -> -25
B24: Depreciation | C24: 40 | E24: -40
B25: Dues & Subscriptions | C25: 44 | E25: -44
B26: Insurance | C26: 20 | E26: -20
B27: Interest Expense | C27: 15 | E27: -15
B28: Maintenance/Improvements | E28: 0
B29: Taxes & Licenses | C29: 29 | E29: -29
B30: Telephone | E30: 0
B31: Travel | E31: 0
B32: Utilities | E32: 0
B33: Web Hosting & Domains
C34: =SUM(C22:C33) -> 2423 | D34: =SUM(D22:D33) -> 2250
B35: PAYROLL
B36: Payroll Expenses | C36: 2600 | D36: 3200 | E36: =D36-C36 -> 600
B37: Salaries & Wages | E37: 0
B38: Contractor Wages | E38: 0
C39: =SUM(C36:C38) -> 2600 | D39: =SUM(D36:D38) -> 3200
B40: OFFICE
B41: Office Supplies | E41: =D41-C41 -> 0
B42: Space Rental | E42: =D42-C42 -> 0
B43: Décor | E43: 0
B44: Machine Rental | E44: 0
B45: Equipment | E45: =D45-C45 -> 0
B46: Postage | E46: 0
B47: Other | E47: 0
C48: =SUM(C41:C47) -> 0 | D48: =SUM(D41:D47) -> 0
B49: ENTERTAINMENT
B50: Video/DVD/Movies | E50: =D50-C50 -> 0
B51: Concerts/Plays | E51: =D51-C51 -> 0
B52: Sports | E52: =D52-C52 -> 0
B53: Outdoor Recreation | E53: =D53-C53 -> 0
C54: =SUM(C50:C53) -> 0
B55: HEALTH
B56: Health Insurance | E56: =D56-C56 -> 0
B57: Gym Membership | E57: 0
B58: Doctors/Dentist Visits | E58: 0
B59: Medicine/Prescriptions | E59: 0
B60: Veterinarian | E60: 0
B61: Life Insurance | E61: 0
C62: =SUM(C56:C61) -> 0 | D62: =SUM(D56:D61) -> 0
B63: VACATION/HOLIDAY
B64: Airfare | E64: =D64-C64 -> 0
B65: Accommodations | E65: 0
B66: Food | E66: 0
B67: Souvenirs | E67: 0
B68: Pet Boarding | E68: 0
B69: Rental Car | E69: 0
C70: =SUM(C64:C69) -> 0 | D70: =SUM(D64:D69) -> 0
B72: TOTAL | C72: =C70+C62+C54+C48+C39+C34 -> 5023 | D72: =D70+D62+D54+D48+D39+D34 -> 5450
B75: CLICK HERE TO CREATE BUSINESS BUDGET TEMPLATES IN SMARTSHEET

Sheet Business Budget - Services
B1: BUSINESS BUDGET
H3: BUDGET | I3: ACTUAL | J3: UNDER/OVER
H4: =H30 -> 850 | I4: =I30 -> 800 | J4: =H4-I4 -> 50
C6: LABOR | E6: MATERIALS | G6: FIXED COST | H6: BUDGET | I6: ACTUAL | J6: UNDER/OVER
B7: TASK | C7: HRS | D7: RATE | E7: UNITS | F7: $/UNIT
B8: CATEGORY
B9: Task | C9: 10 | D9: 15 | E9: 50 | F9: 10 | G9: 200 | H9: =C9*D9+E9*F9+G9 -> 850 | I9: 800 | J9: =I9-H9 -> -50
B10: Task | H10: =C10*D10+E10*F10+G10 -> 0 | J10: =I10-H10 -> 0
B11: Task | H11: 0 | J11: =I11-H11 -> 0
B12: Task | H12: 0 | J12: =I12-H12 -> 0
B13: Task | H13: 0 | J13: =I13-H13 -> 0
H14: =SUM(H9:H13) -> 850 | I14: =SUM(I9:I13) -> 800
B15: CATEGORY
B16: Task | H16: =C16*D16+E16*F16+G16 -> 0 | J16: =I16-H16 -> 0
B17: Task | H17: =C17*D17+E17*F17+G17 -> 0 | J17: =I17-H17 -> 0
B18: Task | H18: 0 | J18: =I18-H18 -> 0
B19: Task | H19: 0 | J19: =I19-H19 -> 0
B20: Task | H20: =C20*D20+E20*F20+G20 -> 0 | J20: =I20-H20 -> 0
H21: =SUM(H16:H20) -> 0 | I21: =SUM(I16:I20) -> 0
B22: CATEGORY
B23: Task | H23: =C23*D23+E23*F23+G23 -> 0 | J23: =I23-H23 -> 0
B24: Task | H24: =C24*D24+E24*F24+G24 -> 0 | J24: =I24-H24 -> 0
B25: Task | H25: 0 | J25: =I25-H25 -> 0
B26: Task | H26: 0 | J26: 0
H27: 0 | J27: 0
H28: =SUM(H24:H26) -> 0 | I28: =SUM(I24:I26) -> 0
B30: TOTAL | H30: =SUM(H14,H21,H28) -> 850 | I30: =SUM(I14,I21,I28) -> 800
B32: CLICK HERE TO CREATE BUSINESS BUDGET TEMPLATES IN SMARTSHEET
